fUST/lending_fUST_20250429
["ID","MTS","AMOUNT","RATE_DAILY","PERIOD"]
[359290573,1745895040804,-400.0,0.00019178,2]
[359290574,1745895040814,-3239.15,0.00019178,2]
[359290575,1745895040824,-201.06719828,0.00019178,2]
[359290576,1745895040835,-987.36,0.00019178,2]
[359290577,1745895040845,-400.0,0.00019178,2]
[359290578,1745895040855,-400.0,0.00019178,2]
[359290579,1745895040864,-698.16,0.00019178,2]
[359290580,1745895040874,-304.33957653,0.00019178,2]
[359290581,1745895040883,-400.0,0.00019178,2]
[359290582,1745895040893,-400.0,0.00019178,2]
[359290583,1745895040902,-400.0,0.00019178,2]
[359290584,1745895040912,-1169.74,0.00019178,2]
[359290585,1745895040922,-553.03,0.00019178,2]
[359290586,1745895040931,-500.0,0.00019178,2]
[359290587,1745895040942,-525.45,0.00019178,2]
[359290588,1745895040951,-463.88,0.00019178,2]
[359290589,1745895040961,-7395.98,0.00019178,2]
[359290590,1745895040970,-400.0,0.00019178,2]
[359290591,1745895040979,-400.0,0.00019178,2]
[359290592,1745895040989,-452.14,0.00019178,2]
[359290593,1745895041035,-432.94,0.00019178,2]
[359290594,1745895041045,-400.0,0.00019178,2]
[359290595,1745895041055,-400.0,0.00019178,2]
[359290596,1745895041065,-1427.37,0.00019178,2]
[359290597,1745895041074,-400.0,0.00019178,2]
[359290598,1745895041084,-302.26225039,0.00019178,2]
[359290599,1745895041093,-400.0,0.00019178,2]
[359290600,1745895041103,-400.0,0.00019178,2]
[359290601,1745895041112,-4743.97,0.00019178,2]
[359290602,1745895041122,-749.28,0.00019178,2]
[359290603,1745895041132,-502.69051416,0.00019178,2]
[359290604,1745895041141,-860.74,0.00019178,2]
[359290605,1745895041150,-400.0,0.00019178,2]
[359290606,1745895041160,-526.1,0.00019178,2]
[359290607,1745895041170,-400.81931565,0.00019178,2]
[359290608,1745895041179,-400.0,0.00019178,2]
[359290609,1745895041190,-400.0,0.00019178,2]
[359290610,1745895041199,-400.0,0.00019178,2]
[359290611,1745895041208,-400.0,0.00019178,2]
[359290612,1745895041218,-400.0,0.00019178,2]
[359290613,1745895041228,-400.0,0.00019178,2]
[359290614,1745895041237,-400.0,0.00019178,2]
[359290615,1745895041247,-872.3,0.00019178,2]
[359290616,1745895041257,-400.0,0.00019178,2]
[359290617,1745895041267,-3365.85,0.00019178,2]
[359290618,1745895041276,-1000.95,0.00019178,2]
[359290619,1745895041285,-400.0,0.00019178,2]
[359290620,1745895041295,-400.0,0.00019178,2]
[359290621,1745895041304,-487.83,0.00019178,2]
[359290622,1745895041313,-400.0,0.00019178,2]
[359290623,1745895041323,-1244.56,0.00019178,2]
[359290624,1745895041332,-400.0,0.00019178,2]
[359290625,1745895041341,-469.84,0.00019178,2]
[359290626,1745895041351,-400.0,0.00019178,2]
[359290627,1745895041359,-875.34,0.00019178,2]
[359290628,1745895041369,-640.42,0.00019178,2]
[359290629,1745895041378,-1261.65,0.00019178,2]
[359290630,1745895041388,-3239.48,0.00019178,2]
[359290631,1745895041397,-1089.23172253,0.00019178,2]
[359290634,1745895043446,-19.97827747,0.00019178,2]
[359290635,1745895043456,-400.0,0.00019178,2]
[359290636,1745895043466,-411.22,0.00019178,2]
[359290637,1745895043475,-403.77630992,0.00019178,2]
[359290638,1745895043484,-356.82541262,0.00019178,2]
[359290639,1745895043495,-197.70458738,0.00019178,2]
[359290640,1745895043505,-401.29145846,0.00019178,2]
[359290641,1745895043514,-500.0,0.00019178,2]
[359290642,1745895043524,-400.0,0.00019178,2]
[359290643,1745895043533,-1267.34,0.00019178,2]
[359290644,1745895043542,-1153.01,0.00019178,2]
[359290645,1745895043551,-400.0,0.00019178,2]
[359290646,1745895043560,-502.76236595,0.00019178,2]
[359290647,1745895043570,-849.2,0.00019178,2]
[359290648,1745895043580,-500.84322119,0.00019178,2]
[359290649,1745895043590,-400.0,0.00019178,2]
[359290650,1745895043599,-400.0,0.00019178,2]
[359290651,1745895043608,-3427.99,0.00019178,2]
[359290652,1745895043618,-502.07077485,0.00019178,2]
[359290653,1745895043628,-4464.15,0.00019178,2]
[359290654,1745895043637,-1117.04,0.00019178,2]
[359290655,1745895043646,-400.0,0.00019178,2]
[359290656,1745895043655,-400.0,0.00019178,2]
[359290657,1745895043665,-1318.47,0.00019178,2]
[359290658,1745895043675,-400.0,0.00019178,2]
[359290659,1745895043684,-400.0,0.00019178,2]
[359290660,1745895043697,-400.0,0.00019178,2]
[359290661,1745895043706,-1545.17,0.00019178,2]
[359290662,1745895043715,-3820.83,0.00019178,2]
[359290663,1745895043725,-400.0,0.00019178,2]
[359290664,1745895043735,-400.0,0.00019178,2]
[359290665,1745895043745,-860.06,0.00019178,2]
[359290666,1745895043755,-400.0,0.00019178,2]
[359290667,1745895043766,-2803.25,0.00019178,2]
[359290668,1745895043776,-400.0,0.00019178,2]
[359290669,1745895043786,-400.0,0.00019178,2]
[359290670,1745895043795,-400.0,0.00019178,2]
[359290671,1745895043804,-400.0,0.00019178,2]
[359290672,1745895043814,-400.0,0.00019178,2]
[359290673,1745895043823,-400.0,0.00019178,2]
[359290674,1745895043833,-579.08,0.00019178,2]
[359290675,1745895043843,-533.5450305,0.00019178,2]
[359290676,1745895043854,-518.37,0.00019178,2]
[359290677,1745895043863,-400.0,0.00019178,2]
[359290678,1745895043872,-400.0,0.00019178,2]
[359290679,1745895043882,-400.0,0.00019178,2]
[359290680,1745895043891,-400.0,0.00019178,2]
[359290681,1745895043901,-724.34,0.00019178,2]
[359290682,1745895043910,-786.22,0.00019178,2]
[359290683,1745895043919,-400.0,0.00019178,2]
[359290684,1745895043929,-500.0,0.00019178,2]
[359290685,1745895043940,-172.136759,0.00019178,2]
[359290686,1745895043949,-300.0,0.00019178,2]
[359290687,1745895043958,-151.62429873,0.000192,2]
[359290688,1745895043968,-157.3664837,0.000192,2]
[359290689,1745895043977,-174.9933725,0.000192,2]
[359290690,1745895043987,-361.7792701,0.000192,2]
[359290691,1745895043996,-567.0839203,0.000192,2]
[359290692,1745895044006,-174.9933725,0.000192,2]
[359290693,1745895044016,-361.7792701,0.000192,2]
[359290694,1745895044026,-174.9933725,0.000192,2]
[359290695,1745895044035,-157.3664837,0.000192,2]
[359290696,1745895044044,-361.7792701,0.000192,2]
[359290697,1745895044054,-567.0839203,0.000192,2]
[359290698,1745895044064,-174.9933725,0.000192,2]
[359290699,1745895044073,-174.9933725,0.000192,2]
[359290700,1745895044082,-157.3664837,0.000192,2]
[359290701,1745895044092,-174.9933725,0.000192,2]
[359290702,1745895044101,-159.8905224,0.000192,2]
[359290703,1745895044111,-2708.8,0.00019211,2]
[359290704,1745895044120,-2708.8,0.00019211,2]
[359290705,1745895044130,-1405.53054845,0.00019284,2]
[359290706,1745895044139,-151.0,0.000193,2]
[359290707,1745895044148,-151.0,0.000193,2]
[359290708,1745895044157,-157.3664837,0.000193,2]
[359290709,1745895044167,-174.9933725,0.000193,2]
[359290710,1745895044176,-361.7792701,0.000193,2]
[359290711,1745895044185,-567.0839203,0.000193,2]
[359290712,1745895044198,-12102.50344025,0.00019348,2]
[359290713,1745895044207,-353.7254255,0.000194,2]
[359290714,1745895044216,-174.9933725,0.000194,2]
[359290715,1745895044225,-157.3664837,0.000194,2]
[359290716,1745895044235,-440.9204709,0.000194,2]
[359290717,1745895044244,-565.7837485,0.000194,2]
[359290718,1745895044253,-157.3664837,0.000194,2]
[359290719,1745895044262,-174.9933725,0.000194,2]
[359290720,1745895044271,-361.5028103,0.000194,2]
[359290721,1745895044280,-567.0839203,0.000194,2]
[359290722,1745895044289,-174.9933725,0.000194,2]
[359290723,1745895044298,-361.7792701,0.000194,2]
[359290724,1745895044307,-567.0839203,0.000194,2]
[359290725,1745895044315,-174.9933725,0.000194,2]
[359290726,1745895044325,-304.4639993,0.000194,2]
[359290727,1745895044334,-400.0,0.00019452,2]
[359290728,1745895044343,-400.0,0.00019452,2]
[359290729,1745895044352,-197.78565677,0.00019452,2]
[359290730,1745895044361,-400.0,0.00019452,2]
[359290731,1745895044371,-400.0,0.00019452,2]
[359290732,1745895044381,-303.34651395,0.00019452,2]
[359290733,1745895044390,-400.0,0.00019452,2]
[359290734,1745895044399,-487.53,0.00019452,2]
[359290735,1745895044408,-400.0,0.00019452,2]
[359290736,1745895044417,-303.1171878,0.00019452,2]
[359290737,1745895044426,-400.0,0.00019452,2]
[359290738,1745895044435,-400.0,0.00019452,2]
[359290739,1745895044449,-400.0,0.00019452,2]
[359290740,1745895044458,-400.0,0.00019452,2]
[359290741,1745895044468,-175.41172383,0.00019452,2]
[359290742,1745895044479,-322.96498213,0.00019452,2]
[359290743,1745895044490,-400.0,0.00019452,2]
[359290744,1745895044500,-400.0,0.00019452,2]
[359290745,1745895044509,-220.24873987,0.00019452,2]
[359290746,1745895044519,-400.0,0.00019452,2]
[359290747,1745895044528,-400.0,0.00019452,2]
[359290748,1745895044539,-436.05,0.00019452,2]
[359290749,1745895044550,-488.77,0.00019452,2]
[359290750,1745895044559,-210.72392818,0.00019452,2]
[359290751,1745895044569,-400.0,0.00019452,2]
[359290752,1745895044578,-400.0,0.00019452,2]
[359290753,1745895044589,-509.61,0.00019452,2]
[359290754,1745895044598,-400.0,0.00019452,2]
[359290755,1745895044607,-400.0,0.00019452,2]
[359290756,1745895044617,-400.0,0.00019452,2]
[359290757,1745895044627,-372.67319966,0.00019452,2]
[359290758,1745895044638,-400.0,0.00019452,2]
[359290759,1745895044648,-400.0,0.00019452,2]
[359290760,1745895044657,-400.0,0.00019452,2]
[359290761,1745895044666,-400.0,0.00019452,2]
[359290762,1745895044676,-400.0,0.00019452,2]
[359290763,1745895044687,-400.0,0.00019452,2]
[359290764,1745895044700,-400.0,0.00019452,2]
[359290765,1745895044710,-400.0,0.00019452,2]
[359290766,1745895044720,-206.30705697,0.00019452,2]
[359290767,1745895044730,-203.62571915,0.00019452,2]
[359290768,1745895044739,-206.36216438,0.00019452,2]
[359290769,1745895044749,-202.13824712,0.00019452,2]
[359290770,1745895044758,-400.0,0.00019452,2]
[359290771,1745895044770,-400.0,0.00019452,2]
[359290772,1745895044782,-461.52,0.00019452,2]
[359290773,1745895044792,-400.0,0.00019452,2]
[359290774,1745895044801,-400.0,0.00019452,2]
[359290775,1745895044810,-400.0,0.00019452,2]
[359290776,1745895044820,-400.0,0.00019452,2]
[359290777,1745895044829,-664.65,0.00019452,2]
[359290778,1745895044840,-400.0,0.00019452,2]
[359290779,1745895044850,-400.0,0.00019452,2]
[359290780,1745895044859,-400.0,0.00019452,2]
[359290781,1745895044869,-470.44664798,0.00019452,2]
[359290782,1745895044879,-421.91,0.00019452,2]
[359290783,1745895044888,-400.0,0.00019452,2]
[359290784,1745895044897,-400.0,0.00019452,2]
[359290785,1745895044908,-549.52,0.00019452,2]
[359290786,1745895044917,-400.0,0.00019452,2]
[359290787,1745895044927,-400.0,0.00019452,2]
[359290788,1745895044936,-400.0,0.00019452,2]
[359290789,1745895044951,-400.0,0.00019452,2]
[359290790,1745895044961,-400.0,0.00019452,2]
[359290791,1745895044971,-400.0,0.00019452,2]
[359290792,1745895044981,-400.0,0.00019452,2]
[359290793,1745895044990,-400.0,0.00019452,2]
[359290794,1745895044999,-400.0,0.00019452,2]
[359290795,1745895045010,-400.0,0.00019452,2]
[359290796,1745895045019,-400.0,0.00019452,2]
[359290797,1745895045029,-400.0,0.00019452,2]
[359290798,1745895045038,-307.17289133,0.00019452,2]
[359290799,1745895045048,-306.37083562,0.00019452,2]
[359290800,1745895045057,-400.0,0.00019452,2]
[359290801,1745895045066,-680.91,0.00019452,2]
[359290802,1745895045076,-220.04496349,0.00019452,2]
[359290803,1745895045087,-306.16296377,0.00019452,2]
[359290804,1745895045096,-400.0,0.00019452,2]
[359290805,1745895045105,-400.0,0.00019452,2]
[359290806,1745895045115,-470.27,0.00019452,2]
[359290807,1745895045125,-869.9,0.00019452,2]
[359290808,1745895045134,-151.0,0.00019452,2]
[359290809,1745895045144,-151.0,0.00019452,2]
[359290810,1745895045154,-151.0,0.00019452,2]
[359290811,1745895045164,-151.0,0.00019452,2]
[359290812,1745895045174,-151.0,0.00019452,2]
[359290813,1745895045185,-151.0,0.00019452,2]
[359290814,1745895045201,-400.0,0.00019452,2]
[359290815,1745895045211,-207.758349,0.00019452,2]
[359290816,1745895045220,-400.0,0.00019452,2]
[359290817,1745895045230,-752.0,0.00019452,2]
[359290818,1745895045240,-953.01,0.00019452,2]
[359290819,1745895045249,-400.0,0.00019452,2]
[359290820,1745895045258,-301.19254641,0.00019452,2]
[359290821,1745895045267,-303.38424345,0.00019452,2]
[359290822,1745895045277,-729.63,0.00019452,2]
[359290823,1745895045288,-681.93,0.00019452,2]
[359290824,1745895045297,-300.0,0.00019452,2]
[359290825,1745895045307,-459.23,0.00019452,2]
[359290826,1745895045316,-400.0,0.00019452,2]
[359290827,1745895045326,-400.0,0.00019452,2]
[359290828,1745895045335,-400.0,0.00019452,2]
[359290829,1745895045345,-400.0,0.00019452,2]
[359290830,1745895045355,-151.0,0.00019452,2]
[359290831,1745895045364,-220.859929,0.00019452,2]
[359290832,1745895045374,-400.0,0.00019452,2]
[359290833,1745895045384,-400.0,0.00019452,2]
[359290834,1745895045393,-435.14,0.00019452,2]
[359290835,1745895045403,-303.26668965,0.00019452,2]
[359290836,1745895045413,-400.0,0.00019452,2]
[359290837,1745895045423,-400.0,0.00019452,2]
[359290838,1745895045433,-788.65,0.00019452,2]
[359290839,1745895045446,-303.44933413,0.00019452,2]
[359290840,1745895045455,-400.0,0.00019452,2]
[359290841,1745895045465,-400.0,0.00019452,2]
[359290842,1745895045475,-400.0,0.00019452,2]
[359290843,1745895045484,-445.55,0.00019452,2]
[359290844,1745895045495,-431.43,0.00019452,2]
[359290845,1745895045505,-217.67972091,0.00019452,2]
[359290846,1745895045515,-410.53097182,0.00019452,2]
[359290847,1745895045524,-400.0,0.00019452,2]
[359290848,1745895045534,-400.0,0.00019452,2]
[359290849,1745895045543,-400.0,0.00019452,2]
[359290850,1745895045553,-1347.66,0.00019452,2]
[359290851,1745895045563,-1253.61,0.00019452,2]
[359290852,1745895045572,-400.0,0.00019452,2]
[359290853,1745895045582,-400.0,0.00019452,2]
[359290854,1745895045592,-400.0,0.00019452,2]
[359290855,1745895045601,-482.37,0.00019452,2]
[359290856,1745895045611,-907.73,0.00019452,2]
[359290857,1745895045621,-488.88367918,0.00019452,2]
[359290858,1745895045630,-400.0,0.00019452,2]
[359290859,1745895045639,-544.05,0.00019452,2]
[359290860,1745895045649,-400.0,0.00019452,2]
[359290861,1745895045659,-500.0,0.00019452,2]
[359290862,1745895045668,-400.0,0.00019452,2]
[359290864,1745895045678,-400.0,0.00019452,2]
[359290865,1745895045690,-400.0,0.00019452,2]
[359290866,1745895045699,-722.03,0.00019452,2]
[359290867,1745895045709,-400.0,0.00019452,2]
[359290868,1745895045719,-206.77293544,0.00019452,2]
[359290869,1745895045729,-400.0,0.00019452,2]
[359290870,1745895045739,-400.0,0.00019452,2]
[359290871,1745895045748,-400.0,0.00019452,2]
[359290872,1745895045760,-400.0,0.00019452,2]
[359290873,1745895045771,-400.0,0.00019452,2]
[359290874,1745895045780,-400.0,0.00019452,2]
[359290875,1745895045791,-400.0,0.00019452,2]
[359290876,1745895045802,-400.0,0.00019452,2]
[359290878,1745895045812,-1165.36,0.00019452,2]
[359290879,1745895045821,-400.0,0.00019452,2]
[359290880,1745895045831,-400.0,0.00019452,2]
[359290881,1745895045841,-400.0,0.00019452,2]
[359290882,1745895045851,-400.0,0.00019452,2]
[359290883,1745895045860,-1527.24,0.00019452,2]
[359290884,1745895045870,-400.0,0.00019452,2]
[359290885,1745895045880,-546.75,0.00019452,2]
[359290886,1745895045890,-1024.81,0.00019452,2]
[359290887,1745895045900,-725.57,0.00019452,2]
[359290888,1745895045910,-400.0,0.00019452,2]
[359290889,1745895045920,-400.0,0.00019452,2]
[359290890,1745895045930,-532.63,0.00019452,2]
[359290891,1745895045941,-400.0,0.00019452,2]
[359290892,1745895045951,-2190.4,0.00019452,2]
[359290893,1745895045961,-773.49,0.00019452,2]
[359290894,1745895045971,-306.98429787,0.00019452,2]
[359290895,1745895045981,-1123.88,0.00019452,2]
[359290896,1745895045991,-1018.81,0.00019452,2]
[359290897,1745895046000,-446.16,0.00019452,2]
[359290898,1745895046011,-400.0,0.00019452,2]
[359290899,1745895046021,-829.58,0.00019452,2]
[359290900,1745895046031,-939.54,0.00019452,2]
[359290902,1745895046042,-508.81515267,0.00019452,2]
[359290904,1745895046052,-1040.02,0.00019452,2]
[359290906,1745895046062,-400.0,0.00019452,2]
[359290908,1745895046073,-400.0,0.00019452,2]
[359290910,1745895046082,-400.0,0.00019452,2]
[359290912,1745895046092,-400.0,0.00019452,2]
[359290914,1745895046102,-400.0,0.00019452,2]
[359290916,1745895046112,-523.99,0.00019452,2]
[359290918,1745895046121,-400.0,0.00019452,2]
[359290920,1745895046131,-886.27,0.00019452,2]
[359290922,1745895046141,-1563.19,0.00019452,2]
[359290924,1745895046151,-400.0,0.00019452,2]
[359290926,1745895046161,-424.32249456,0.00019452,2]
[359290928,1745895046174,-8641.78,0.00019452,2]
[359290930,1745895046184,-474.03,0.00019452,2]
[359290933,1745895046201,-7203.64,0.00019452,2]
[359290935,1745895046212,-1391.33,0.00019452,2]
[359290937,1745895046223,-400.0,0.00019452,2]
[359290938,1745895046233,-400.0,0.00019452,2]
[359290941,1745895046246,-400.0,0.00019452,2]
[359290943,1745895046258,-426.98,0.00019452,2]
[359290945,1745895046268,-300.96212553,0.00019452,2]
[359290947,1745895046279,-2841.42,0.00019452,2]
[359290949,1745895046291,-400.0,0.00019452,2]
[359290951,1745895046301,-400.0,0.00019452,2]
[359290953,1745895046311,-400.0,0.00019452,2]
[359290955,1745895046321,-400.0,0.00019452,2]
[359290957,1745895046333,-400.0,0.00019452,2]
[359290959,1745895046343,-400.0,0.00019452,2]
[359290961,1745895046354,-400.0,0.00019452,2]
[359290963,1745895046364,-400.0,0.00019452,2]
[359290965,1745895046374,-400.0,0.00019452,2]
[359290967,1745895046384,-247.62292781,0.00019452,2]
[359290969,1745895046394,-400.0,0.00019452,2]
[359290971,1745895046405,-492.39,0.00019452,2]
[359290973,1745895046415,-529.61,0.00019452,2]
[359290976,1745895046427,-400.0,0.00019452,2]
[359290978,1745895046441,-400.0,0.00019452,2]
[359290979,1745895046451,-862.45,0.00019452,2]
[359290981,1745895046461,-1502.82,0.00019452,2]
[359290983,1745895046471,-400.0,0.00019452,2]
[359290985,1745895046480,-688.34,0.00019452,2]
[359290988,1745895046490,-683.34,0.00019452,2]
[359290990,1745895046500,-400.0,0.00019452,2]
[359290992,1745895046510,-922.98,0.00019452,2]
[359290994,1745895046520,-306.19212624,0.00019452,2]
[359290996,1745895046530,-400.0,0.00019452,2]
[359290998,1745895046540,-460.66,0.00019452,2]
[359291000,1745895046550,-1731.73,0.00019452,2]
[359291002,1745895046561,-400.0,0.00019452,2]
[359291004,1745895046571,-400.0,0.00019452,2]
[359291006,1745895046580,-688.59,0.00019452,2]
[359291008,1745895046590,-523.03969152,0.00019452,2]
[359291010,1745895046600,-896.35,0.00019452,2]
[359291012,1745895046610,-1244.71,0.00019452,2]
[359291014,1745895046620,-203.27615697,0.00019452,2]
[359291016,1745895046630,-400.0,0.00019452,2]
[359291018,1745895046639,-1243.65,0.00019452,2]
[359291020,1745895046650,-366.24608044,0.00019452,2]
[359291022,1745895046659,-311.08171285,0.00019452,2]
[359291024,1745895046668,-400.0,0.00019452,2]
[359291026,1745895046678,-400.0,0.00019452,2]
[359291028,1745895046690,-400.0,0.00019452,2]
[359291030,1745895046703,-400.0,0.00019452,2]
[359291033,1745895046712,-2584.83,0.00019452,2]
[359291034,1745895046722,-400.0,0.00019452,2]
[359291035,1745895046732,-678.98,0.00019452,2]
[359291037,1745895046742,-439.82,0.00019452,2]
[359291039,1745895046751,-400.0,0.00019452,2]
[359291042,1745895046762,-955.03,0.00019452,2]
[359291044,1745895046777,-400.0,0.00019452,2]
[359291046,1745895046786,-766.32,0.00019452,2]
[359291048,1745895046796,-6668.64,0.00019452,2]
[359291049,1745895046806,-442.16,0.00019452,2]
[359291050,1745895046816,-551.05,0.00019452,2]
[359291052,1745895046827,-400.0,0.00019452,2]
[359291053,1745895046838,-400.0,0.00019452,2]
[359291054,1745895046847,-400.0,0.00019452,2]
[359291055,1745895046858,-400.0,0.00019452,2]
[359291056,1745895046868,-474.48322546,0.00019452,2]
[359291057,1745895046878,-400.0,0.00019452,2]
[359291058,1745895046888,-537.08,0.00019452,2]
[359291059,1745895046898,-3355.31,0.00019452,2]
[359291060,1745895046909,-2006.54,0.00019452,2]
[359291061,1745895046919,-420.56236722,0.00019452,2]
[359291062,1745895046930,-3239.15,0.00019452,2]
[359291063,1745895046943,-987.36,0.00019452,2]
[359291064,1745895046952,-400.0,0.00019452,2]
[359291065,1745895046962,-400.0,0.00019452,2]
[359291066,1745895046972,-698.16,0.00019452,2]
[359291067,1745895046982,-400.0,0.00019452,2]
[359291068,1745895046992,-400.0,0.00019452,2]
[359291069,1745895047002,-400.0,0.00019452,2]
[359291070,1745895047012,-1169.74,0.00019452,2]
[359291071,1745895047022,-553.03,0.00019452,2]
[359291072,1745895047031,-500.0,0.00019452,2]
[359291073,1745895047041,-525.45,0.00019452,2]
[359291074,1745895047052,-463.88,0.00019452,2]
[359291075,1745895047062,-7395.98,0.00019452,2]
[359291076,1745895047072,-400.0,0.00019452,2]
[359291077,1745895047081,-303.36990059,0.00019452,2]
[359291078,1745895047091,-452.14,0.00019452,2]
[359291079,1745895047102,-432.94,0.00019452,2]
[359291080,1745895047112,-400.0,0.00019452,2]
[359291081,1745895047123,-1427.37,0.00019452,2]
[359291082,1745895047133,-400.0,0.00019452,2]
[359291083,1745895047145,-400.0,0.00019452,2]
[359291084,1745895047156,-400.0,0.00019452,2]
[359291085,1745895047167,-749.28,0.00019452,2]
[359291086,1745895047178,-860.74,0.00019452,2]
[359291087,1745895047190,-4743.97,0.00019452,2]
[359291088,1745895047202,-400.0,0.00019452,2]
[359291089,1745895047391,-526.1,0.00019452,2]
[359291090,1745895047402,-400.0,0.00019452,2]
[359291091,1745895047411,-400.0,0.00019452,2]
[359291092,1745895047422,-460.87497267,0.00019452,2]
[359291093,1745895047433,-400.0,0.00019452,2]
[359291094,1745895047446,-400.0,0.00019452,2]
[359291095,1745895047456,-400.0,0.00019452,2]
[359291096,1745895047466,-400.0,0.00019452,2]
[359291097,1745895047477,-872.3,0.00019452,2]
[359291098,1745895047488,-400.0,0.00019452,2]
[359291099,1745895047497,-3365.85,0.00019452,2]
[359291100,1745895047507,-1000.95,0.00019452,2]
[359291101,1745895047516,-400.0,0.00019452,2]
[359291102,1745895047525,-400.0,0.00019452,2]
[359291103,1745895047534,-487.83,0.00019452,2]
[359291104,1745895047543,-400.0,0.00019452,2]
[359291105,1745895047552,-1244.56,0.00019452,2]
[359291106,1745895047562,-501.40035428,0.00019452,2]
[359291107,1745895047572,-469.84,0.00019452,2]
[359291108,1745895047580,-504.8589814,0.00019452,2]
[359291109,1745895047589,-875.34,0.00019452,2]
[359291110,1745895047598,-640.42,0.00019452,2]
[359291111,1745895047607,-1261.65,0.00019452,2]
[359291112,1745895047616,-3239.48,0.00019452,2]
[359291113,1745895047625,-1109.21,0.00019452,2]
[359291114,1745895047635,-400.0,0.00019452,2]
[359291115,1745895047645,-411.22,0.00019452,2]
[359291116,1745895047655,-554.53,0.00019452,2]
[359291117,1745895047664,-400.0,0.00019452,2]
[359291118,1745895047673,-1267.34,0.00019452,2]
[359291119,1745895047683,-1153.01,0.00019452,2]
[359291120,1745895047694,-400.0,0.00019452,2]
[359291121,1745895047704,-849.2,0.00019452,2]
[359291122,1745895047713,-400.0,0.00019452,2]
[359291123,1745895047723,-400.0,0.00019452,2]
[359291124,1745895047732,-3427.99,0.00019452,2]
[359291125,1745895047743,-4464.15,0.00019452,2]
[359291126,1745895047752,-1117.04,0.00019452,2]
[359291127,1745895047766,-400.0,0.00019452,2]
[359291128,1745895047777,-400.0,0.00019452,2]
[359291129,1745895047788,-1318.47,0.00019452,2]
[359291130,1745895047799,-400.0,0.00019452,2]
[359291131,1745895047809,-400.0,0.00019452,2]
[359291132,1745895047819,-400.0,0.00019452,2]
[359291133,1745895047830,-400.0,0.00019452,2]
[359291134,1745895047841,-3820.83,0.00019452,2]
[359291135,1745895047853,-400.0,0.00019452,2]
[359291136,1745895047862,-1545.17,0.00019452,2]
[359291137,1745895047872,-860.06,0.00019452,2]
[359291138,1745895047883,-400.0,0.00019452,2]
[359291139,1745895047893,-2803.25,0.00019452,2]
[359291140,1745895047904,-259.00954036,0.00019452,2]
[359291141,1745895047914,-400.0,0.00019452,2]
[359291142,1745895047923,-400.0,0.00019452,2]
[359291143,1745895047933,-400.0,0.00019452,2]
[359291144,1745895047944,-400.0,0.00019452,2]
[359291145,1745895047954,-400.0,0.00019452,2]
[359291146,1745895047963,-579.08,0.00019452,2]
[359291147,1745895047973,-518.37,0.00019452,2]
[359291148,1745895047982,-400.0,0.00019452,2]
[359291149,1745895047992,-400.0,0.00019452,2]
[359291150,1745895048001,-403.63841891,0.00019452,2]
[359291151,1745895048010,-400.0,0.00019452,2]
[359291152,1745895048020,-724.34,0.00019452,2]